Cogmind - Beta 15 @@@ ROGUE MODE // 2025.08.04 @ 18:06:29 Player: FenRhew Result: Destroyed by KO-6B5(R) with Subdweller Beam Cannon Performance ------------- Evolutions (0) 0 Regions Visited (2) 400 Robots Destroyed (24) 120 Value Destroyed (540) 540 Prototype IDs (4) 80 Alien Tech Used (0) 0 Bonus (-143) -143 TOTAL SCORE: 997 Bonus ------- Friendly Fire -143 Cogmind --------- Core Integrity 0/250 Matter 300/300 Energy 248/250 System Corruption 2% Temperature Cool (9) Movement Rolling (105) Location -10/Subcaves Parts ------- > --- POWER (1) -------- Ion Engine > --- PROPULSION (2) --- Compact Wheel Subdweller Monowheel > --- UTILITY (2) ------ Disposable Heat Sink Large Storage Unit > --- WEAPON (2) ------- Medium Laser Subdweller Laser > --- INVENTORY (15) --- Subdweller Power Source Improved Heat Sink Disposable Heat Sink Medium Matter Pod (100) Subdweller Optics Seismic Detector Seismic Detector Tractor Beam Assault Rifle Assault Rifle Battle Cannon Grenade Launcher Peak State ------------ > --- POWER ------------ Subdweller Power Source > --- PROPULSION ------- Compact Wheel Subdweller Monowheel > --- UTILITY ---------- Disposable Heat Sink Large Storage Unit > --- WEAPON ----------- Medium Laser Subdweller Laser > --- INVENTORY -------- Ion Engine Subdweller Power Source Compact Wheel Subdweller Monowheel Improved Heat Sink Disposable Heat Sink Small Storage Unit Medium Matter Pod Subdweller Optics Seismic Detector Seismic Detector Tractor Beam Assault Rifle Assault Rifle Grenade Launcher [Rating: 13] Favorites ----------- Power Light Ion Engine Engine Light Ion Engine Propulsion Light Treads Treads Light Treads Wheel Compact Wheel Utility Small Storage Unit Device Seismic Detector Storage Small Storage Unit Processor Targeting Computer Weapon Medium Laser Energy Gun Medium Laser Ballistic Gun Light Assault Rifle Launcher Grenade Launcher Build | -11 -10 -10 ------- Run | Yrd Mat Sub Slots Evolved . | . . . Power . | . . . Propulsion . | . . . Utility . | . . . Weapon . | . . . Parts Attached 25 | 7 10 8 Power 4 | 1 1 2 Engine 4 | 1 1 2 Core . | . . . Reactor . | . . . Propulsion 8 | 2 2 4 Treads 2 | 2 . . Leg . | . . . Wheel 6 | . 2 4 Hover . | . . . Flight . | . . . Utility 6 | 2 3 1 Device 3 | 1 1 1 Storage 2 | 1 1 . Processor 1 | . 1 . Hackware . | . . . Protection . | . . . Artifact . | . . . Weapon 7 | 2 4 1 Energy Gun 5 | 2 2 1 Energy Cannon . | . . . Ballistic Gun 1 | . 1 . Ballistic Cannon . | . . . Launcher 1 | . 1 . Special Weapon . | . . . Impact Weapon . | . . . Slashing Weapon . | . . . Piercing Weapon . | . . . Special Melee Weapon . | . . . Unidentified Prototypes . | . . . Parts Lost 7 | . 2 5 Power 1 | . . 1 Propulsion 4 | . 1 3 Utility . | . . . Weapon 2 | . 1 1 Highest Loss Streak 4 | . 2 4 To Critical Strikes . | . . . Average Backups 10 | 4 9 13 Power 1 | . 1 1 Propulsion 2 | 2 2 1 Utility 3 | . 3 6 Weapon 2 | . 2 3 Tool/Special . | . . . Unused Backups 14 | . 3 11 Power 1 | . . 1 Propulsion 2 | . 2 . Utility 8 | . 1 7 Weapon 3 | . . 3 Tool/Special . | . . . Average Slot Usage (%) 96 | . 95 98 Engine 13 | . 14 12 Treads 10 | . 15 . Wheel 14 | . 8 27 Device 7 | . 6 9 Storage 14 | . 14 14 Processor 6 | . 7 3 Energy Gun 26 | . 26 25 Ballistic Gun 1 | . 1 1 Peak Build Rating 13 | 9 9 13 Average Rating 8 | 7 7 10 On Entrance 5 | . 9 8 Naked Turns . | . . . Heaviest Build 32 | 12 30 32 Greatest Support 40 | 40 40 36 Greatest Overweight (x) 1 | . . 1 Average Overweight (x) . | . . . Largest Inventory Capacity 15 | 8 15 15 Average Capacity 11 | 7 10 15 Most Carried 15 | 7 14 15 Average Carried 10 | 5 9 13 Final Capacity 15 | 8 15 15 Final Carried 14 | 7 14 12 Class Distribution -------------------- 92% | Mutant 7% | Scavenger-Mutant Dominant Class ---------------- Mutant | -10/Materials Mutant | -10/Subcaves Resources | -11 -10 -10 ----------- Run | Yrd Mat Sub Matter Collected 652 | 227 285 140 Remotely . | . . . Salvage Created 753 | 68 515 170 Parts 60 | 8 40 12 Haulers Intercepted . | . . . Recyclers Shooed 1 | . 1 . Parts Field Recycled . | . . . Retrieved Matter . | . . . Parts Self-Destructed 7 | . . 7 Prevented . | . . . Kills | -11 -10 -10 ------- Run | Yrd Mat Sub Combat Hostiles Destroyed 17 | . 14 3 Guns 9 | . 7 2 AOE 6 | . 6 . Classes Destroyed 9 | 2 5 2 Worker 1 | . 1 . Tunneler 1 | 1 . . Recycler 1 | 1 . . Operator 1 | . 1 . Watcher 2 | . 2 . Swarmer 6 | . 6 . Grunt 8 | . 8 . Subdweller 3 | . . 3 Federalist 1 | . . 1 Best Kill Streak 9 | 1 9 2 Combat Bots Only 7 | . 7 2 Max Kills in Single Turn 4 | 1 4 2 Gunslinging . | . . . Exploded 3 | . 3 . Melee . | . . . Uniques/NPCs Destroyed . | . . . Combat | -11 -10 -10 -------- Run | Yrd Mat Sub Hostile Shots Fired 92 | . 59 33 Missed 25 | . 16 9 Hits 67 | . 43 24 Projectile 67 | . 43 24 Damage Taken 1068 | 37 479 552 Core 257 | . 102 155 Absorbed by Shields . | . . . Core Remaining (%) 100 | 100 . . Volleys Fired 78 | 6 43 29 Largest 2 | 2 2 2 Hottest 110 | 80 100 110 Shots Fired 138 | 12 80 46 Gun 133 | 12 77 44 Cannon . | . . . Launcher 5 | . 3 2 Special . | . . . Kinetic 7 | . 6 1 Thermal 96 | 6 47 43 Explosive 5 | . 3 2 Electromagnetic 30 | 6 24 . Robot Hit Streak 26 | 3 13 26 Robot Miss Streak 6 | 2 6 2 Penetration Max . | . . . Secondary Targets . | . . . Shots Hit Robots 79 | 7 41 31 Core Hits 38 | 3 29 6 Critical Kills . | . . . Critical Parts Destroyed . | . . . Critical Strikes 3 | . 2 1 Burn 3 | . 2 1 Melee Attacks . | . . . Impact . | . . . Slashing . | . . . Piercing . | . . . Sneak Attacks . | . . . Combat Hostiles . | . . . Follow-up Attacks . | . . . Damage Inflicted 1270 | 110 831 329 Guns 909 | 85 587 237 Cannons . | . . . Explosions 361 | 25 244 92 Melee . | . . . Ramming . | . . . Kinetic 61 | . 52 9 Thermal 650 | 71 351 228 Explosive 336 | . 244 92 Electromagnetic 223 | 39 184 . Impact . | . . . Slashing . | . . . Piercing . | . . . Highest Corruption 2 | . 2 2 Average Corruption 1 | . 1 2 Corruption Purged . | . . . Corruption Blocked . | . . . Effects 9 | . 4 5 Message Errors 3 | . 1 2 Matter Fused 1 | . . 1 Heat Flow Errors 2 | . 1 1 Energy Discharges 1 | . 1 . Data Loss (minor) 1 | . 1 . Misfires 1 | . . 1 Overload Shots . | . . . Overflow Damage 30 | . 30 . Projectiles . | . . . Explosions 30 | . 30 . Melee . | . . . Knockbacks . | . . . Impact . | . . . Kinetic . | . . . Secondary . | . . . Self-Inflicted Damage 64 | 37 . 27 Shots 2 | 1 . 1 Rammed . | . . . Targets Rammed . | . . . Kicked . | . . . Crushed . | . . . Highest Temperature 267 | 84 267 112 Average Temperature 97 | 40 108 32 Received Heat Transfer 363 | . 234 129 Siege Activations . | . . . Martial Activations . | . . . Shielding Activations . | . . . Robots Disrupted . | . . . Combat Hostiles . | . . . Robots Corrupted . | . . . Combat Hostiles . | . . . Parts Fried . | . . . Impact Corruptions . | . . . Robots Melted 2 | . 1 1 Combat Hostiles 2 | . 1 1 Parts Melted 3 | . 2 1 Heat Transferred 1724 | 150 1066 508 Parts Sabotaged . | . . . Parts Stolen . | . . . Parts Stripped . | . . . Power Chain Reactions 1 | 1 . . Alert | -11 -10 -10 ------- Run | Yrd Mat Sub Maximum Alert Level . | . . . Low Security (%) 100 | 100 100 . Level 1 . | . . . Level 2 . | . . . Level 3 . | . . . Level 4 . | . . . Level 5 . | . . . High Security . | . . . Max Security . | . . . Peak Influence 178 | 5 178 . Initial . | . . . Average 77 | . 89 . Influence Increases 440 | 10 430 . Destroy 0b10 Robot/C 280 | . 280 . Destroy 0b10 Robot/NC 30 | 10 20 . Destroy Leader 64 | . 64 . Successful Hack 33 | . 33 . Destroy Structure 18 | . 18 . Lose Combat Pursuer 15 | . 15 . Influence Decreases 440 | 10 290 140 Entered New Map 68 | . . 68 Time Decay 312 | 10 270 32 Lost Part 60 | . 20 40 Squads Dispatched 2 | . 2 . Investigation . | . . . Extermination . | . . . Reinforcement 2 | . 2 . Assault . | . . . Garrison . | . . . Intercept . | . . . Searches Triggered . | . . . Construction Impeded . | . . . Haulers Reinforced . | . . . Active Scanning Responses . | . . . Cargo Convoy Interrupts . | . . . Stealth | -11 -10 -10 --------- Run | Yrd Mat Sub Distress Signals 2 | . 2 . Communications Jammed . | . . . Distress Signals . | . . . Times Spotted 33 | . 26 7 Peak Tracking Total 7 | . 7 3 Tactical Retreats 1 | . 1 . Traps | -11 -10 -10 ------- Run | Yrd Mat Sub Traps Triggered 2 | . 2 . Indirectly . | . . . Trap Hack Attempts . | . . . Triggered . | . . . Disarmed . | . . . Reprogrammed . | . . . Reused . | . . . Traps Extracted . | . . . Installed . | . . . Triggered . | . . . Machines | -11 -10 -10 ---------- Run | Yrd Mat Sub Machines Disabled . | . . . Max in Single Turn . | . . . Machines Repaired . | . . . Machines Dismantled . | . . . Machines Sabotaged . | . . . Overloaded Fab Kills . | . . . Hacking | -11 -10 -10 --------- Run | Yrd Mat Sub Machines Accessed 5 | . 5 . Terminals 3 | . 3 . Fabricators . | . . . Repair Stations . | . . . Recycling Units 2 | . 2 . Scanalyzers . | . . . Garrison Access . | . . . Total Hacks 19 | . 19 . Successful 10 | . 10 . Failed 9 | . 9 . Catastrophic 1 | . 1 . Database Lockouts . | . . . Manual 10 | . 10 . Terminals 14 | . 14 . Fabricators . | . . . Repair Stations . | . . . Recycling Units 5 | . 5 . Scanalyzers . | . . . Garrison Access . | . . . Terminal Hacks 6 | . 6 . Prototype ID Bank 3 | . 3 . Terminal Index 1 | . 1 . Hauler Manifests 1 | . 1 . Registered Components 1 | . 1 . Fabricator Hacks . | . . . Repair Station Hacks . | . . . Recycling Unit Hacks 3 | . 3 . Report Inventory 2 | . 2 . Retrieve Matter 1 | . 1 . Scanalyzer . | . . . Garrison Access Hacks . | . . . Unauthorized Hacks 1 | . 1 . Terminals 1 | . 1 . Botnet 1 | . 1 . Fabricators . | . . . Repair Stations . | . . . Recycling Units . | . . . Scanalyzers . | . . . Garrison Access . | . . . Data Cores Recovered . | . . . Used . | . . . Hacking Detections 4 | . 4 . Full Trace Events 1 | . 1 . Feedback Events . | . . . Feedback Blocked . | . . . Robot Schematics Acquired . | . . . Robots Built . | . . . Authchips . | . . . Time . | . . . Total Robot Build Rating . | . . . Part Schematics Acquired . | . . . Parts Built . | . . . Authchips . | . . . Time . | . . . Total Part Build Rating . | . . . Parts Repaired . | . . . Time . | . . . Parts Recycled . | . . . Recycled Matter . | . . . Retrieved Matter . | . . . Retrieved Components . | . . . Parts Scanalyzed . | . . . Part Schematics Acquired . | . . . Parts Damaged . | . . . Bothacking | -11 -10 -10 ------------ Run | Yrd Mat Sub Used RIF Installer . | . . . Robots Hacked . | . . . Non-combat . | . . . Combat . | . . . Robot Hacks Applied . | . . . Relay Couplers Released . | . . . Fabnet Peak Effective % . | . . . Robots Rewired . | . . . Allies Hacked . | . . . Hacks Repelled . | . . . Allies | -11 -10 -10 -------- Run | Yrd Mat Sub Total Allies . | . . . Largest Group . | . . . Highest-Rated Group . | . . . Highest-Rated Ally . | . . . Total Orders . | . . . Ally Attacks . | . . . Total Damage . | . . . Kills . | . . . Allies Corrupted . | . . . Allies Melted . | . . . Intel | -11 -10 -10 ------- Run | Yrd Mat Sub Active Infowar (turns) 485 | 72 413 . Terrain 119 | 72 47 . Seismic 366 | . 366 . Robot Analysis Total . | . . . Derelict Logs Recovered . | . . . Drone Launches . | . . . Drone Recoveries . | . . . Exploration | -11 -10 -10 ------------- Run | Yrd Mat Sub Turns Passed 1361 | 129 854 378 Spaces Moved 801 | 59 496 246 Core 1 | 1 . . Treads 321 | 58 263 . Legs . | . . . Wheels 479 | . 233 246 Hover . | . . . Flight . | . . . Fastest Speed 50 | 50 100 100 Average Speed 124 | 158 131 102 Slowest Speed 160 | 160 160 115 Overloaded Moves . | . . . Propulsion Burnouts . | . . . Robots Hopped . | . . . Potential Cave-ins . | . . . Cave-ins Triggered . | . . . Exploration Rate (%) 27 | 4 67 12 Regions Visited 2 Branch Regions 1 Pre-discovered Areas . | . . . Known Exits Taken . | . . . Unknown Exits Taken 2 | 1 1 . Scrap Searched . | . . . Spaces Dug 7 | . . 7 Terrain Destroyed 39 | 2 22 15 Melee . | . . . Projectile . | . . . AOE 39 | 2 22 15 Terrain Rammed . | . . . Walls Destroyed . | . . . Machines Disabled . | . . . Actions | -11 -10 -10 --------- Run | Yrd Mat Sub Total 1024 | 79 618 327 Wait 73 | 1 44 28 Move 799 | 58 495 246 Hop . | . . . Pick Up 25 | 7 13 5 Fast Attach 12 | 7 2 3 Attach 7 | . 3 4 Detach 4 | . 3 1 Swap 13 | . 7 6 Drop 13 | . 8 5 Fire 78 | 6 43 29 Melee . | . . . Ram . | . . . Kick . | . . . Crush . | . . . Escape Stasis . | . . . Rewire . | . . . Trap . | . . . Miscellaneous . | . . . Route ------- -11/Scrapyard -10/Materials (discovered 3 exits: [*Mat] / [*Min] / [*Sub]) -10/Subcaves (discovered 1 exit: [*Scr]) History --------- Turn | Location | Event 10 | -11/Scrapyard | Discovered new exit (range 15) 130 | -11/Scrapyard | Entered Materials 131 | -10/Materials | Met a group of wandering Federalists 155 | -10/Materials | Discovered new exit (range 6) 311 | -10/Materials | Build established: Mutant 343 | -10/Materials | Discovered new exit (range 3) 518 | -10/Materials | Destroyed 7 combat bots 854 | -10/Materials | Discovered new exit (range 8) 984 | -10/Materials | Entered Subcaves 985 | -10/Subcaves | Continued accompanying wandering Federalists (6) 1036 | -10/Subcaves | Core integrity fell below 50% 1084 | -10/Subcaves | Lost 4 parts (1p2n1w) 1091 | -10/Subcaves | Lost 3 allies 1119 | -10/Subcaves | Shifting Twisted Machinery released Battle Cannon 1248 | -10/Subcaves | Wandering Federalist uncovered a shortcut to Scraptown 1268 | -10/Subcaves | A swath of the cavern ceiling suddenly collapsed 1331 | -10/Subcaves | Core integrity fell below 20% 1362 | -10/Subcaves | Destroyed by KO-6B5(R) with Subdweller Beam Cannon Last Messages --------------- 01219_ Acquired 7 matter. 01220_ Acquired 13 matter. 01230_ A4-5UD(g): "I swear these Subs are restructuring the caves every time we're not looking." 01248_ A4-5UD(g): "Ah ha, there it is!" 01259_ OO-18Z(g) exits level. 01261_ A4-5UD(g) exits level. 01261_ EC-UUI(g) exits level. 01264_ LF-VKX(g) exits level. A swath of the cavern ceiling suddenly collapses. 01319_ JFJP 2L9DQQKOF:G1>JJ1>TZ8V9VU 01332_ Com. Wheel destroyed. 01334_ Y7-K2O(R) destroyed. 01338_ System corrupted: Matter fused (-9). 01338_ Acquired 44 matter. 01339_ AB-OF8(R) suffers critical hit (Burn). 01348_ AB-OF8(R) destroyed. 01358_ 1E<0 4U 1SW:AZPCACT MUZS WERQW Map ----- +----------------------------------------------------+ | ?????????????????????????????????????????????? ??# | | ??????????????????????????????????????????????# ? | | ??????????????????????????????????????????????# ## | | ??????????????????????????????????????????????# | | ??????????????????????????????????????????????? | | ????????????????????????????????????????????????? | | ?????????????????????????????????????????????????? | | ?????????????????????????????????????????????????? | | ?????????????????????????????????????????????????? | | ?????????????????????????????????????????????????? | | ?????????????????????????????????????????????????? | | ?????????????????????????????????????????????????? | | ?????????????????????????????????????????????????? | | ?????????????????????????????????????????????????? | | ?????????????????????????????????????????????????? | | ?????????????????????????????????????????????????? | | ?????????????????????????????????????????????????? | | ?????????????????????????????????????????????????? | | ?????????????????????????????????????????????????? | | ????????????????#????????????????????????????????? | | ????????????????# ??????????????????????????????? | | ????????????# ?# ?????????????????????????????? | | ??????????? # # ????###?????????????????????? | | ?????????? #### ##????????????????####? | | ?????????? #????????????????# ## | | ?????????? R @ ####???????????##### # | | ?????????? R ## # # #????????#??####"## | | ???????????????????????# ##???????"?## # #### | | ???????????????????????## #???????"### #?# | | ????????????????????????# # #?????###"## #?? | | ????????????????????????##### ##????##"""# #?? | | ???????????????????????????## ######"#""# ###?? | | ???????????????????????????# # # #"#"""# #""#?? | | ???????????????????????????# & " """"" ""####?? | | ???????????????????????????##%## #""#""#"""#"# ?? | | ????????????????????????????#* #####"##"#"""## ? | | ????????????????????????????# ##???##"##"#### | | ????????????????????????????# ??????#"### | | ????????????????????????????# ???????##?## ## | | ???????????????????????????? ??????????####?# | | ???????????????????????????? ???????????????? | | ???????????????????????????? ???????????????? | | ???????????????????????????? &!& ???????????????? | | ????????????????????????????##%! #???????????????? | | ??????????????????????????????]& ???????????????? | | ?????????????????????????????? ???????????????? | | ?????????????????????????????? ##??????????????? | | ?????????????????????????????? #???????????????? | | ??????????????????????????????# #???????????????? | | ??????????????????????????????? ???????????????? | +----------------------------------------------------+ Best States ------------- Heat Dissipation 25 Coolant Potential 50 Energy Generation 15 Energy Capacity 250 Matter Stores 300 Matter Capacity 300 Sight Range 16 Terrain Scan Range 16 Terrain Scan Density 10 Evasion (%) 40 Targeting Accuracy 5 Recoil Reduction 2 Item Schematics ----------------- None Robot Schematics ------------------ None Fabricated ------------ Nothing Repaired ---------- Nothing Alien Tech Used ----------------- None Achievements -------------- None Challenges ------------ None Game ------ Seed SmallAssemblyKit Manual? 0 Play Time 00:14:50 Cumulative 89.9 hours Start 2025.08.04 @ 17:55:10 End 2025.08.04 @ 18:06:29 Sessions 1 Manual Loads 0 Difficulty Rogue Special Mode None Game No. 62 Rogue 62 Adventurer 0 Explorer 0 Win Type - Total 1 Types 1/0/0/0/0/0/0/0/0/0 Lore% 56 Gallery% 49 Achievement% 43 Wizard Run 0 Options --------- Layout 1 ASCII 0 Keyboard 1 Movement Numpad Keybinds 0 Fullscreen 1 Font 24/Smallcaps Map View 50x35 Zoom Use 0% Tactical HUD 1 Map Filters NONE Filters NONE Steam 1 RUN: 0dd67909-24f1-454f-96e8-1f13933b7609